fUST/lending_fUST_20251024
["ID","MTS","AMOUNT","RATE_DAILY","PERIOD"]
[392179269,1761239436583,-215.69537491,0.00022973,2]
[392179270,1761239436593,-500.0,0.00022973,2]
[392179271,1761239436604,-500.0,0.00022973,2]
[392179272,1761239436613,-500.0,0.00022973,2]
[392179273,1761239436622,-500.0,0.00022973,2]
[392179274,1761239436631,-500.0,0.00022973,2]
[392179275,1761239436641,-500.0,0.00022973,2]
[392179276,1761239436650,-500.0,0.00022973,2]
[392179277,1761239436659,-500.0,0.00022973,2]
[392179278,1761239436668,-500.0,0.00022973,2]
[392179279,1761239436677,-500.0,0.00022973,2]
[392179280,1761239436686,-235.51278415,0.00022973,2]
[392179281,1761239436696,-500.0,0.00022973,2]
[392179282,1761239436705,-500.0,0.00022973,2]
[392179283,1761239436714,-500.0,0.00022973,2]
[392179284,1761239436723,-500.0,0.00022973,2]
[392179285,1761239436732,-500.0,0.00022973,2]
[392179286,1761239436741,-500.0,0.00022973,2]
[392179287,1761239436751,-501.77395195,0.00022973,2]
[392179288,1761239436759,-500.0,0.00022973,2]
[392179289,1761239436769,-500.0,0.00022973,2]
[392179290,1761239436778,-500.0,0.00022973,2]
[392179291,1761239436787,-500.0,0.00022973,2]
[392179292,1761239436796,-500.0,0.00022973,2]
[392179293,1761239436805,-500.0,0.00022973,2]
[392179294,1761239436815,-161.58195251,0.00022973,2]
[392179295,1761239436824,-500.0,0.00022973,2]
[392179296,1761239436834,-160.15244519,0.00022973,2]
[392179297,1761239436843,-500.0,0.00022973,2]
[392179298,1761239436853,-500.0,0.00022973,2]
[392179299,1761239436862,-500.0,0.00022973,2]
[392179300,1761239436871,-500.0,0.00022973,2]
[392179301,1761239436880,-500.0,0.00022973,2]
[392179302,1761239436890,-503.46085722,0.00022973,2]
[392179303,1761239436899,-500.0,0.00022973,2]
[392179304,1761239436908,-500.0,0.00022973,2]
[392179305,1761239436917,-411.03744154,0.00022973,2]
[392179306,1761239436926,-500.0,0.00022973,2]
[392179307,1761239436936,-500.0,0.00022973,2]
[392179308,1761239436945,-500.0,0.00022973,2]
[392179309,1761239436954,-500.0,0.00022973,2]
[392179310,1761239436963,-503.67836126,0.00022973,2]
[392179311,1761239436972,-436.66874448,0.00022973,2]
[392179312,1761239436982,-500.0,0.00022973,2]
[392179313,1761239436991,-453.56483523,0.00022973,2]
[392179314,1761239437000,-158.14952234,0.00022973,2]
[392179315,1761239437009,-500.0,0.00022973,2]
[392179316,1761239437018,-170.16073627,0.00022973,2]
[392179317,1761239437027,-504.43064108,0.00022973,2]
[392179318,1761239437036,-500.0,0.00022973,2]
[392179319,1761239437045,-501.32485326,0.00022973,2]
[392179320,1761239437054,-201.81257552,0.00022973,2]
[392179321,1761239437063,-162.07750316,0.00022973,2]
[392179322,1761239437072,-500.0,0.00022973,2]
[392179323,1761239437081,-500.3690429,0.00022973,2]
[392179324,1761239437091,-500.0,0.00022973,2]
[392179325,1761239437102,-500.0,0.00022973,2]
[392179326,1761239437113,-253.82828695,0.00022973,2]
[392179328,1761239437123,-158.18478293,0.00022973,2]
[392179329,1761239437132,-400.39648071,0.00022973,2]
[392179330,1761239437142,-500.0,0.00022973,2]
[392179331,1761239437151,-500.0,0.00022973,2]
[392179332,1761239437161,-575.94496587,0.00022973,2]
[392179333,1761239437172,-159.92167521,0.00022973,2]
[392179334,1761239437183,-500.0,0.00022973,2]
[392179335,1761239437193,-500.0,0.00022973,2]
[392179336,1761239437202,-500.0,0.00022973,2]
[392179338,1761239437211,-500.0,0.00022973,2]
[392179340,1761239437221,-500.0,0.00022973,2]
[392179342,1761239437230,-500.0,0.00022973,2]
[392179343,1761239437239,-283.79128916,0.00022973,7]
[392179345,1761239437249,-572.67120326,0.00022973,7]
[392179346,1761239437258,-151.0,0.00022989,2]
[392179347,1761239437267,-151.0,0.00022989,2]
[392179348,1761239437277,-151.0,0.00022989,2]
[392179349,1761239437287,-151.0,0.00022989,2]
[392179350,1761239437297,-151.0,0.00022989,2]
[392179352,1761239437306,-247.39966697,0.00022989,2]
[392179354,1761239437315,-500.0,0.00022989,2]
[392179355,1761239437324,-151.0,0.00022989,2]
[392179357,1761239437333,-151.0,0.00022989,2]
[392179359,1761239437342,-202.16351752,0.00022989,2]
[392179361,1761239437353,-194.53490704,0.00022989,2]
[392179363,1761239437362,-151.0,0.00022989,2]
[392179365,1761239437371,-151.0,0.00022989,2]
[392179367,1761239437381,-500.0,0.00022989,2]
[392179369,1761239437390,-201.74549163,0.00022989,2]
[392179371,1761239437399,-525.0,0.00022989,2]
[392179373,1761239437408,-199.33539142,0.00022989,2]
[392179375,1761239437417,-255.8991662,0.00022989,2]
[392179377,1761239437427,-151.0,0.00022989,2]
[392179379,1761239437436,-500.0,0.00022989,2]
[392179381,1761239437446,-151.0,0.00022989,2]
[392179383,1761239437455,-26446.7701173,0.0002299,2]
[392179407,1761239437673,150.0,0.00021067,2]
[392179424,1761239437928,193.81177019,0.00022572,2]
[392179462,1761239438740,163.21,0.00021983,2]
[392179463,1761239439064,150.0,0.00014615,30]
[392179464,1761239439139,150.0,0.00015311,30]
[392179465,1761239439185,150.0,0.00016007,30]
[392179467,1761239439233,150.0,0.00016703,30]
[392179468,1761239439269,150.0,0.00017399,30]
[392179469,1761239439302,-209.89289817,0.00022583,2]
[392179471,1761239439313,-500.0,0.00022873,2]
[392179473,1761239439322,-204.01,0.00022899,2]
[392179475,1761239439332,-1519.40398958,0.0002299,2]
[392179476,1761239439343,-2561.51366708,0.0002299,2]
[392179488,1761239439797,-5694.42539406,0.0002299,2]
[392179489,1761239439853,-14442.15834951,0.0002299,2]
[392179596,1761239454226,-5000.0,0.00022709,7]
[392179597,1761239454515,-269.0,0.00022938,2]
[392179598,1761239455041,461.61131764,0.00022583,2]
[392179599,1761239468453,500.0,0.00022583,2]
[392179600,1761239468485,500.0,0.00022583,2]
[392179601,1761239468513,500.0,0.00022583,2]
[392179602,1761239468541,500.0,0.00022583,2]
[392179603,1761239468573,500.0,0.00022583,2]
[392179604,1761239468601,500.0,0.00022583,2]
[392179605,1761239468630,500.0,0.00022583,2]
[392179606,1761239468658,500.0,0.00022583,2]
[392179607,1761239468689,500.0,0.00022583,2]
[392179608,1761239468718,500.0,0.00022583,2]
[392179609,1761239468746,500.0,0.00022583,2]
[392179610,1761239468773,500.0,0.00022583,2]
[392179611,1761239468800,500.0,0.00022583,2]
[392179612,1761239468829,500.0,0.00022583,2]
[392179613,1761239468856,500.0,0.00022583,2]
[392179614,1761239468884,500.0,0.00022583,2]
[392179615,1761239468913,500.0,0.00022583,2]
[392179616,1761239468941,500.0,0.00022583,2]
[392179617,1761239468970,500.0,0.00022583,2]
[392179618,1761239469003,500.0,0.00022583,2]
[392179619,1761239469041,-292.44573754,0.00022988,2]
[392179620,1761239469166,-526.40232757,0.00022988,2]
[392179621,1761239469195,500.0,0.00022583,2]
[392179622,1761239469260,500.0,0.00022583,2]
[392179623,1761239469289,500.0,0.00022583,2]
[392179624,1761239469317,500.0,0.00022583,2]
[392179625,1761239469347,935.82636012,0.00022988,2]
[392179626,1761239469375,500.0,0.00022583,2]
[392179627,1761239469408,545.30863617,0.00022583,2]
[392179628,1761239469434,500.0,0.00022583,2]
[392179629,1761239469468,500.0,0.00022583,2]
[392179630,1761239469501,500.0,0.00022583,2]
[392179631,1761239469537,500.0,0.00022583,2]
[392179632,1761239469564,500.0,0.00022583,2]
[392179633,1761239469592,500.0,0.00022583,2]
[392179634,1761239469624,500.0,0.00022583,2]
[392179635,1761239473214,163.39251887,0.00022988,2]
[392179636,1761239473245,500.0,0.00022583,2]
[392179637,1761239473278,217.78635462,0.00022583,2]
[392179638,1761239473310,282.21364538,0.00022583,2]
[392179639,1761239473339,500.0,0.00022583,2]
[392179640,1761239473366,500.0,0.00022583,2]
[392179641,1761239473393,500.0,0.00022583,2]
[392179642,1761239473425,500.0,0.00022583,2]
[392179643,1761239473454,500.0,0.00022583,2]
[392179644,1761239473487,298.20716302,0.00022583,2]
[392179645,1761239473544,500.0,0.00022583,2]
[392179646,1761239473626,500.0,0.00022583,2]
[392179647,1761239473656,500.0,0.00022583,2]
[392179648,1761239473695,500.0,0.00022583,2]
[392179649,1761239475891,4919.5891916,0.00022988,2]
[392179650,1761239475915,80.4108084,0.00022988,2]
[392179651,1761239479680,500.0,0.00022873,2]
[392179652,1761239480491,500.0,0.00022873,2]
[392179653,1761239481675,343.50349268,0.00022873,2]
[392179654,1761239482073,500.0,0.00022873,2]
[392179655,1761239483620,500.0,0.00022583,2]
[392179656,1761239484024,-300.0,0.00022989,2]
[392179657,1761239490308,500.0,0.00022873,2]
[392179658,1761239490720,500.0,0.00022873,2]
[392179659,1761239494140,500.0,0.00022973,2]
[392179660,1761239494504,500.0,0.00022973,2]
[392179661,1761239494534,501.58711182,0.00022973,2]
[392179662,1761239496914,500.0,0.00022973,2]
[392179663,1761239498737,5000.0,0.00022989,2]
[392179664,1761239499885,-1270.00265922,0.0002299,2]
[392179665,1761239499926,-10000.01,0.0002299,2]
[392179666,1761239500025,-10000.01,0.0002299,2]
[392179667,1761239500194,-10000.01,0.0002299,2]
[392179668,1761239500375,-4889.82049849,0.0002299,2]
[392179669,1761239500400,-220.36900302,0.0002299,2]
[392179670,1761239502092,-151.0,0.0002299,7]
[392179671,1761239502119,-530.98403,0.0002299,7]
[392179672,1761239502147,-530.98403,0.0002299,7]
[392179673,1761239502176,-530.98403,0.0002299,7]
[392179674,1761239502207,-530.98403,0.0002299,7]
[392179675,1761239502237,-446.235701,0.0002299,7]
[392179676,1761239502264,-446.235701,0.0002299,7]
[392179677,1761239502290,-446.235701,0.0002299,7]
[392179678,1761239502318,-446.235701,0.0002299,7]
[392179679,1761239502431,-247.817153,0.0002299,2]
[392179680,1761239502465,-247.817153,0.0002299,2]
[392179681,1761239502492,-247.817153,0.0002299,2]
[392179682,1761239502519,-145.532081,0.0002299,2]
[392179683,1761239502643,-102.285072,0.0002299,2]
[392179684,1761239502671,-151.0,0.0002299,7]
[392179685,1761239502701,-151.0,0.0002299,7]
[392179686,1761239502729,-151.0,0.0002299,7]
[392179687,1761239502756,-261.169552,0.0002299,7]
[392179688,1761239502784,-334.807404,0.0002299,7]
[392179689,1761239502812,-334.807404,0.0002299,7]
[392179690,1761239502839,-334.807404,0.0002299,7]
[392179691,1761239502867,-334.807394,0.0002299,7]
[392179692,1761239502896,-273.19,0.0002299,10]
[392179693,1761239503871,150.0,0.00019275,2]
[392179694,1761239504201,150.0,0.00020193,2]
[392179695,1761239504604,150.0,0.00021111,2]
[392179696,1761239504993,150.0,0.00022029,2]
[392179697,1761239505410,150.0,0.00022947,2]
[392179698,1761239507902,150.0,0.00012963,30]
[392179699,1761239508295,150.0,0.0001358,30]
[392179700,1761239514210,-404.62360759,0.00022999,2]
[392179701,1761239514247,-462.4269801,0.00022999,2]
[392179702,1761239514277,-512.64265472,0.00022999,2]
[392179703,1761239514307,-922.7567785,0.00022999,2]
[392179704,1761239521108,5000.0,0.00022999,2]
[392179705,1761239526603,300.0,0.00022999,2]
[392179706,1761239529092,300.0,0.000229,2]
[392179707,1761239539889,300.0,0.000229,2]
[392179708,1761239544080,4100.01,0.00023,2]
[392179709,1761239544104,899.99,0.00023,2]
[392179710,1761239551160,300.0,0.000229,2]
[392179711,1761239552576,644.24524034,0.00022999,2]
[392179712,1761239561639,300.0,0.000229,2]
[392179713,1761239566990,2433.42199793,0.00023,2]
[392179714,1761239568559,501.36620467,0.00022973,2]
[392179715,1761239569949,506.307262,0.000229,9]
[392179716,1761239572696,300.0,0.000229,2]
[392179717,1761239575708,1156.32235435,0.00023,2]
[392179718,1761239575807,150.0,0.00019227,2]
[392179719,1761239576218,178.8,0.00020142,2]
[392179720,1761239576646,268.2,0.00021058,2]
[392179721,1761239577079,357.6,0.00021974,2]
[392179722,1761239577484,447.01,0.00022889,2]
[392179723,1761239579935,150.0,0.00012868,30]
[392179724,1761239580339,150.0,0.00013481,30]
[392179725,1761239580735,150.0,0.00014094,30]
[392179726,1761239581125,153.26,0.00014706,30]
[392179727,1761239581535,191.57,0.00015319,30]
[392179728,1761239581931,229.89,0.00015932,30]
[392179729,1761239582382,268.2,0.00016545,30]
[392179730,1761239582780,263.82694071,0.00017158,30]
[392179731,1761239582806,42.69305929,0.00017158,30]
[392179732,1761239583190,344.83,0.0001777,30]
[392179733,1761239585149,300.0,0.00022999,2]
[392179734,1761239586083,224.80588535,0.00016,2]
[392179735,1761239598442,704.24745162,0.00023,2]
[392179736,1761239612035,1640.45649512,0.00022988,2]
[392179737,1761239614148,1305.8811764,0.00023,2]
[392179738,1761239615502,314.867506,0.000229,9]
[392179739,1761239616118,515.49856722,0.00022988,2]
[392179740,1761239623768,4606.729859,0.000229,2]
[392179741,1761239623792,10000.01,0.000229,2]
[392179742,1761239623814,10000.01,0.000229,2]
[392179743,1761239623835,10000.01,0.000229,2]
[392179744,1761239623858,10000.01,0.000229,2]
[392179745,1761239623880,10000.01,0.000229,2]
[392179746,1761239623902,10000.01,0.000229,2]
[392179747,1761239632595,-9024.94036518,0.000229,2]
[392179748,1761239632697,-10000.01,0.000229,2]
[392179749,1761239632825,-10000.01,0.000229,2]
[392179750,1761239632961,-10000.01,0.000229,2]
[392179751,1761239633072,-10000.01,0.000229,2]
[392179752,1761239633196,-10000.01,0.000229,2]
[392179753,1761239633325,-10000.01,0.000229,2]
[392179754,1761239633484,-10000.01,0.000229,2]
[392179755,1761239635593,-10000.01,0.000229,2]
[392179756,1761239649854,226.97,0.00019226,2]
[392179757,1761239650041,300.0,0.00016,2]
[392179758,1761239650302,453.95,0.00020141,2]
[392179759,1761239650693,680.92,0.00021057,2]
[392179760,1761239654337,150.0,0.00012834,30]
[392179761,1761239654738,194.55,0.00013445,30]
[392179762,1761239655157,291.82,0.00014056,30]
[392179763,1761239655582,389.1,0.00014667,30]
[392179764,1761239656002,486.37,0.00015279,30]
[392179765,1761239656432,583.65,0.0001589,30]
[392179766,1761239656843,680.92,0.00016501,30]
[392179767,1761239657271,778.19,0.00017112,30]
[392179768,1761239657771,875.47,0.00017723,30]
[392179769,1761239658077,920.024197,0.00018334,30]
[392179770,1761239660615,300.0,0.00016,2]
[392179771,1761239669901,-564.79381928,0.00021585,2]
[392179772,1761239702949,300.0,0.00021584,2]
[392179773,1761239703649,300.0,0.00021584,2]
[392179774,1761239703836,231.0,0.00021584,2]
[392179775,1761239704308,1200.0,0.00021584,2]
[392179776,1761239706506,196.0,0.00016,2]
[392179777,1761239706815,196.0,0.000163,2]
[392179778,1761239706912,300.0,0.00021584,2]
[392179779,1761239707102,196.0,0.000166,2]
[392179780,1761239707373,196.0,0.000169,2]
[392179781,1761239707643,196.0,0.000172,2]
[392179782,1761239707944,196.0,0.000175,2]
[392179783,1761239708224,196.0,0.000178,2]
[392179785,1761239708502,327.84072757,0.000181,2]
[392179786,1761239725392,162.89,0.00019344,2]
[392179787,1761239725460,-8494.35507543,0.00021585,2]
[392179788,1761239725592,-10000.01,0.00021585,2]
[392179789,1761239725622,325.79,0.00020265,2]
[392179790,1761239725756,-1562.34223809,0.00021585,2]
[392179791,1761239726022,488.68,0.00021186,2]
[392179792,1761239729255,150.0,0.00014896,30]
[392179793,1761239729672,150.0,0.00015605,30]
[392179794,1761239730142,209.43,0.00016314,30]
[392179796,1761239731077,279.25,0.00017024,30]
[392179797,1761239731556,349.06,0.00017733,30]
[392179798,1761239731989,418.87,0.00018442,30]
[392179799,1761239732410,488.68,0.00019152,30]
[392179800,1761239732803,558.49,0.00019861,30]
[392179801,1761239733199,628.3,0.0002057,30]
[392179802,1761239733601,607.55,0.0002128,30]
[392179803,1761239751614,500.0,0.000241,59]
[392179804,1761239758217,-300.0,0.000216,2]
[392179805,1761239800826,150.0,0.00019385,2]
[392179806,1761239801218,255.25,0.00020309,2]
[392179807,1761239801637,382.88,0.00021232,2]
[392179808,1761239804878,2355.9801257,0.00021585,2]
[392179809,1761239804909,150.0,0.00013392,30]
[392179810,1761239805306,150.0,0.0001403,30]
[392179811,1761239805732,164.09,0.00014668,30]
[392179812,1761239806138,218.79,0.00015305,30]
[392179813,1761239806538,273.49,0.00015943,30]
[392179814,1761239807104,328.18,0.00016581,30]
[392179815,1761239807416,382.88,0.00017219,30]
[392179816,1761239807833,437.58,0.00017856,30]
[392179817,1761239808223,492.27,0.00018494,30]
[392179818,1761239808621,388.69042132,0.00019132,30]
[392179819,1761239829665,5000.0,0.00022155,2]
[392179820,1761239838326,5000.0,0.00022155,2]
[392179821,1761239847689,0.01,0.00022154,2]
[392179822,1761239847711,1999.99,0.00022154,2]
[392179823,1761239853917,5000.0,0.00022155,2]
[392179824,1761239861854,3000.02,0.00022155,2]
[392179825,1761239861882,1999.98,0.00022155,2]
[392179826,1761239877156,5000.0,0.00022,2]
[392179827,1761239877185,150.0,0.00019346,2]
[392179828,1761239877584,159.19,0.00020267,2]
[392179829,1761239878012,238.78,0.00021188,2]
[392179830,1761239882375,150.0,0.00015437,30]
[392179831,1761239882767,150.0,0.00016172,30]
[392179832,1761239883202,150.0,0.00016907,30]
[392179833,1761239883647,150.0,0.00017642,30]
[392179834,1761239884075,170.56,0.00018377,30]
[392179835,1761239884619,204.67,0.00019112,30]
[392179836,1761239884987,238.78,0.00019847,30]
[392179837,1761239885384,272.89,0.00020582,30]
[392179838,1761239885536,2965.14,0.00022,2]
[392179839,1761239885560,2034.86,0.00022,2]
[392179840,1761239886049,307.0,0.00021317,30]
[392179841,1761239901275,5000.0,0.0002211,2]
[392179842,1761239909110,5000.0,0.0002211,2]
[392179843,1761239924306,5000.0,0.00022,2]
[392179844,1761239932646,5000.0,0.00022,2]
[392179845,1761239941150,0.01,0.00022,2]
[392179846,1761239941174,1745.13104451,0.00022,2]
[392179847,1761239945764,196.0,0.00016,2]
[392179848,1761239946038,196.0,0.0001642,2]
[392179849,1761239946315,196.0,0.0001684,2]
[392179850,1761239946630,196.0,0.0001726,2]
[392179851,1761239946907,196.0,0.0001768,2]
[392179852,1761239947175,257.18062786,0.000181,2]
[392179853,1761239949001,4447.93576374,0.00022,2]
[392179854,1761239954014,150.0,0.00019237,2]
[392179855,1761239954451,241.75,0.00020154,2]
[392179856,1761239954861,362.62,0.0002107,2]
[392179857,1761239955251,483.5,0.00021986,2]
[392179858,1761239957086,1331.89256389,0.00022,2]
[392179859,1761239957110,3668.10743611,0.00022,2]
[392179860,1761239958138,150.0,0.00013739,30]
[392179861,1761239958555,150.0,0.00014394,30]
[392179862,1761239958957,155.41,0.00015048,30]
[392179863,1761239959430,207.21,0.00015702,30]
[392179864,1761239959833,259.02,0.00016356,30]
[392179865,1761239960248,310.82,0.00017011,30]
[392179866,1761239960685,362.62,0.00017665,30]
[392179867,1761239961076,414.43,0.00018319,30]
[392179868,1761239961469,466.23,0.00018973,30]
[392179869,1761239961865,344.33,0.00019628,30]
[392179870,1761239972860,1922.22154904,0.00021796,2]
[392179871,1761239981190,5000.0,0.00021796,2]
[392179872,1761239989570,1279.56711656,0.00021796,2]
[392179873,1761239998932,666.0,0.00021742,2]
[392179874,1761240004922,1132.2213344,0.00021796,2]
[392179875,1761240004947,3867.7786656,0.00021796,2]
[392179876,1761240028408,2608.95251094,0.00021796,2]
[392179877,1761240028778,150.0,0.00019232,2]
[392179878,1761240029168,284.67,0.00020148,2]
[392179879,1761240029588,427.0,0.00021064,2]
[392179880,1761240033207,150.0,0.00014796,30]
[392179881,1761240033407,150.0,0.00015501,30]
[392179882,1761240033817,183.0,0.00016206,30]
[392179883,1761240034244,244.0,0.0001691,30]
[392179884,1761240034719,305.0,0.00017615,30]
[392179885,1761240035119,366.0,0.00018319,30]
[392179886,1761240035552,427.0,0.00019024,30]
[392179887,1761240036056,488.01,0.00019729,30]
[392179888,1761240036404,348.59882346,0.00020433,30]
[392179889,1761240036429,200.41117654,0.00020433,30]
[392179890,1761240036921,485.37,0.00021138,30]
[392179891,1761240065724,196.0,0.00016,2]
[392179892,1761240066004,196.0,0.0001635,2]
[392179893,1761240066412,196.0,0.000167,2]
[392179894,1761240066577,196.0,0.0001705,2]
[392179895,1761240066868,196.0,0.000174,2]
[392179896,1761240067165,196.0,0.0001775,2]
[392179897,1761240067447,212.68651097,0.000181,2]
[392179898,1761240072664,300.0,0.000211,2]
[392179899,1761240084363,300.0,0.000211,2]
[392179900,1761240090548,611.84956469,0.000218,2]
[392179901,1761240095631,300.0,0.000211,2]
[392179902,1761240099856,3986.49154073,0.0002027,2]
[392179903,1761240102830,1657.3996064,0.000217,2]
[392179904,1761240104614,150.0,0.00019235,2]
[392179905,1761240105034,177.53,0.00020151,2]
[392179906,1761240105472,266.3,0.00021067,2]
[392179907,1761240106626,300.0,0.000211,2]
[392179908,1761240108067,5000.0,0.0002198,2]
[392179909,1761240108799,150.0,0.00013233,30]
[392179910,1761240109196,150.0,0.00013863,30]
[392179911,1761240109600,150.0,0.00014493,30]
[392179912,1761240110010,152.17,0.00015123,30]
[392179913,1761240110409,190.21,0.00015753,30]
[392179914,1761240110848,228.25,0.00016383,30]
[392179915,1761240111250,266.3,0.00017013,30]
[392179916,1761240111664,304.34,0.00017643,30]
[392179917,1761240112069,342.38,0.00018274,30]
[392179918,1761240116419,515.1303936,0.0002198,2]
[392179919,1761240116445,4484.8696064,0.0002198,2]
[392179920,1761240117820,300.0,0.000211,2]
[392179921,1761240124487,4287.79977175,0.00021804,2]
[392179922,1761240132844,5000.0,0.00021804,2]
[392179923,1761240134506,-355.06,0.00021983,2]
[392179924,1761240141394,5000.0,0.00021983,2]
[392179925,1761240149435,-1657.3996064,0.0002217,2]
[392179926,1761240157057,3530.3473363,0.0002217,2]
[392179927,1761240165330,-1657.3996064,0.00022297,2]
[392179928,1761240165357,1171.67554432,0.0002217,2]
[392179929,1761240179453,150.0,0.00019326,2]
[392179930,1761240179838,226.08,0.00020246,2]
[392179931,1761240180230,339.11,0.00021167,2]
[392179932,1761240180513,-345.36759486,0.00022379,2]
[392179933,1761240180634,452.15,0.00022087,2]
[392179934,1761240182626,160.0,0.00022297,2]
[392179935,1761240183541,150.0,0.00013003,30]
[392179936,1761240183964,150.0,0.00013622,30]
[392179937,1761240184379,150.0,0.00014241,30]
[392179938,1761240184799,193.78,0.0001486,30]
[392179939,1761240185292,242.22,0.00015479,30]
[392179940,1761240185730,290.67,0.00016099,30]
[392179941,1761240186173,339.11,0.00016718,30]
[392179942,1761240186285,196.0,0.00016,2]
[392179943,1761240186573,196.0,0.00016263,2]
[392179944,1761240186604,387.56,0.00017337,30]
[392179945,1761240186854,196.0,0.00016525,2]
[392179946,1761240186990,436.0,0.00017956,30]
[392179947,1761240187140,196.0,0.00016788,2]
[392179948,1761240187398,288.15,0.00018575,30]
[392179949,1761240187591,196.0,0.0001705,2]
[392179950,1761240187735,196.0,0.00017313,2]
[392179951,1761240188010,196.0,0.00017575,2]
[392179952,1761240188297,196.0,0.00017838,2]
[392179953,1761240188732,371.45163451,0.000181,2]
[392179954,1761240195592,-1657.3996066,0.00022558,2]
[392179955,1761240210616,-345.36759486,0.00022629,2]
[392179956,1761240225661,-930.59116338,0.00022699,2]
[392179957,1761240241761,-184.48,0.0002279,10]
[392179958,1761240250785,153.73,0.0002279,10]
[392179959,1761240254267,150.0,0.00019337,2]
[392179960,1761240254733,150.0,0.00020257,2]
[392179961,1761240255163,206.01,0.00021178,2]
[392179962,1761240255561,274.67,0.00022099,2]
[392179963,1761240256773,-1200.0,0.00022797,2]
[392179964,1761240256803,-300.0,0.00022797,2]
[392179965,1761240258567,150.0,0.00013028,30]
[392179966,1761240258965,150.0,0.00013649,30]
[392179967,1761240259393,150.0,0.00014269,30]
[392179968,1761240259785,150.0,0.0001489,30]
[392179969,1761240260303,150.0,0.0001551,30]
[392179970,1761240260582,176.58,0.0001613,30]
[392179971,1761240260971,206.01,0.00016751,30]
[392179972,1761240261402,235.44,0.00017371,30]
[392179973,1761240261811,156.6,0.00017992,30]
[392179974,1761240262177,804.46,0.0002279,10]
[392179975,1761240267414,4670.92,0.00022797,2]
[392179976,1761240267442,329.08,0.00022797,2]
[392179977,1761240290831,1797.6767673,0.00022798,2]
[392179978,1761240303081,-500.0,0.00022798,2]
[392179979,1761240303114,-500.0,0.00022798,2]
[392179981,1761240303144,-500.0,0.00022798,2]
[392179982,1761240303173,-500.0,0.00022798,2]
[392179983,1761240303204,-500.0,0.00022798,2]
[392179984,1761240303233,-500.0,0.00022798,2]
[392179985,1761240303263,-204.53086362,0.00022798,2]
[392179986,1761240303291,-306.13649296,0.00022798,2]
[392179987,1761240303320,-300.0,0.00022798,2]
[392179988,1761240303346,300.0,0.00022797,2]
[392179989,1761240303546,1200.0,0.00022797,2]